Cogmind - Beta 11 X7 @@@ ROGUE MODE // 2021.10.18 @ 21:40:22 Player: Plexion Result: Destroyed by G-47 Trooper with Particle Gun Performance ------------- Evolutions (2) 1000 Regions Visited (6) 1200 Robots Destroyed (73) 365 Value Destroyed (2023) 2023 Prototype IDs (25) 500 Alien Tech Used (0) 0 Bonus (304) 304 TOTAL SCORE: 5392 Bonus ------- High Alert Combat Kills 166 Follower Combat Kills 134 Aligned with FarCom 300 Friendly Fire -296 Cogmind --------- Core Integrity 0/550 Matter 80/300 Energy 100/100 System Corruption 0% Temperature Cool (9) Movement Treading (160) Location -8/Storage Parts ------- > --- POWER (1) -------- (None) > --- PROPULSION (3) --- Light Treads Light Treads > --- UTILITY (5) ------ Improved Heat Sink Large Storage Unit Improved Light Armor Plating Improved Light Armor Plating > --- WEAPON (2) ------- Assault Cannon Assault Cannon > --- INVENTORY (15) --- Lightpack 2.0 Improved Light Armor Plating Heavy Assault Rifle Enhanced Autogun Enhanced Autogun Assault Cannon Assault Cannon Assault Cannon Improved Grenade Launcher Peak State ------------ > --- POWER ------------ Improved Ion Engine > --- PROPULSION ------- Light Treads Light Treads Light Treads > --- UTILITY ---------- Large Storage Unit Targeting Computer Improved Light Armor Plating Improved Light Armor Plating Improved Light Armor Plating > --- WEAPON ----------- Assault Cannon Assault Cannon > --- INVENTORY -------- Light Treads Light Treads Improved Heat Sink Lightpack 2.0 Improved Light Armor Plating Heavy Assault Rifle Assault Cannon Assault Cannon Assault Cannon Assault Cannon Improved Grenade Launcher [Rating: 27] Favorites ----------- Power Improved Ion Engine Engine Improved Ion Engine Propulsion Light Treads Treads Light Treads Hover Unit Hover Unit Utility Targeting Computer Device Improved Heat Sink Storage Large Storage Unit Processor Targeting Computer Protection Improved Light Armor Plating Weapon Small Laser Energy Gun Small Laser Ballistic Gun Light Assault Rifle Ballistic Cannon Assault Cannon Launcher Improved Grenade Launcher Build | -11 -10 -10 -10 -9 -8 -8 ------- Run | Scr Mat Min Exi Min Mat Sto Slots Evolved 4 | . . . . . 4 . Power . | . . . . . . . Propulsion 1 | . . . . . 1 . Utility 3 | . . . . . 3 . Weapon . | . . . . . . . Parts Attached 59 | 8 1 2 1 3 15 29 Power 3 | 1 . . . . 1 1 Engine 3 | 1 . . . . 1 1 Core . | . . . . . . . Reactor . | . . . . . . . Propulsion 16 | 2 . . . 1 3 10 Treads 15 | 2 . . . . 3 10 Leg . | . . . . . . . Wheel . | . . . . . . . Hover 1 | . . . . 1 . . Flight . | . . . . . . . Utility 18 | 1 1 . 1 1 8 6 Device 3 | . . . . . 2 1 Storage 4 | 1 . . 1 . 2 . Processor 1 | . 1 . . . . . Hackware . | . . . . . . . Protection 10 | . . . . 1 4 5 Artifact . | . . . . . . . Weapon 22 | 4 . 2 . 1 3 12 Energy Gun 8 | 4 . 1 . 1 1 1 Energy Cannon . | . . . . . . . Ballistic Gun 5 | . . 1 . . 2 2 Ballistic Cannon 7 | . . . . . . 7 Launcher 2 | . . . . . . 2 Special Weapon . | . . . . . . . Impact Weapon . | . . . . . . . Slashing Weapon . | . . . . . . . Piercing Weapon . | . . . . . . . Special Melee Weapon . | . . . . . . . Unidentified Prototypes 2 | . . . . . . 2 Parts Lost 17 | . . 2 4 1 1 9 Power 2 | . . . 1 . . 1 Propulsion 6 | . . . 2 1 . 3 Utility 4 | . . . . . . 4 Weapon 5 | . . 2 1 . 1 1 Highest Loss Streak 4 | . . 1 4 1 1 3 Average Slot Usage (%) 91 | . 88 99 99 39 81 98 Engine 10 | . 14 14 13 . 7 8 Treads 24 | . 28 28 27 . 20 26 Device 3 | . . . . . 7 6 Storage 10 | . 14 14 14 . 7 9 Processor 10 | . 3 14 14 14 9 8 Protection 9 | . . . . 8 13 19 Energy Gun 10 | . 28 22 14 8 7 4 Ballistic Gun 7 | . . 5 14 . 7 4 Ballistic Cannon 3 | . . . . . . 9 Naked Turns . | . . . . . . . Heaviest Build 47 | 12 12 12 15 4 40 47 Greatest Support 60 | 40 40 40 40 6 60 60 Greatest Overweight (x) 1 | . . . . 1 1 1 Average Overweight (x) . | . . . . . . . Largest Inventory Capacity 15 | 8 8 8 10 5 15 15 Average Capacity 11 | 7 8 8 9 5 12 15 Most Carried 15 | 2 2 2 5 5 11 15 Average Carried 6 | 1 2 1 2 4 7 14 Final Capacity 15 | 8 8 8 5 5 15 15 Final Carried 11 | 2 2 1 5 5 11 11 Class Distribution -------------------- 58% | Mutant 41% | Scavenger-Mutant Dominant Class ---------------- Mutant | -10/Materials Mutant | -10/Mines Mutant | -10/Exiles Mutant | -9/Mines Scavenger-Mutant | -8/Materials Scavenger-Mutant | -8/Storage Resources | -11 -10 -10 -10 -9 -8 -8 ----------- Run | Scr Mat Min Exi Min Mat Sto Matter Collected 1265 | 214 25 56 35 25 209 701 Remotely . | . . . . . . . Salvage Created 2249 | . 54 131 69 33 371 1591 Parts 150 | . 9 11 . 1 30 99 Haulers Intercepted 4 | . . . . . . 4 Recyclers Shooed 2 | . . . . . . 2 Parts Field Recycled . | . . . . . . . Retrieved Matter . | . . . . . . . Parts Self-Destructed . | . . . . . . . Prevented . | . . . . . . . Kills | -11 -10 -10 -10 -9 -8 -8 ------- Run | Scr Mat Min Exi Min Mat Sto Combat Hostiles Destroyed 54 | . 3 3 . 1 9 38 Guns 29 | . 3 3 . 1 9 13 Cannons 11 | . . . . . . 11 AOE 14 | . . . . . . 14 Classes Destroyed 13 | . 2 2 . . 1 8 Worker 5 | . . 1 . . 1 3 Builder 2 | . . . . . . 2 Hauler 4 | . . . . . . 4 Recycler 4 | . . . . . . 4 Mechanic 1 | . . . . . . 1 Watcher 2 | . 1 . . . . 1 Swarmer 13 | . 3 1 . . 3 6 Cutter 4 | . . . . . . 4 Grunt 25 | . . 2 . 1 3 19 Brawler 1 | . . . . . . 1 Protector 1 | . . . . . . 1 Sentry 9 | . . . . . 3 6 Heavy 1 | . . . . . . 1 Thug 1 | . . . 1 . . . Best Kill Streak 18 | . 4 2 . 1 4 18 Combat Bots Only 8 | . 3 2 . 1 3 8 Max Kills in Single Turn 6 | . 2 1 1 1 1 6 Gunslinging . | . . . . . . . Exploded 6 | . . . . . . 6 Melee . | . . . . . . . Uniques/NPCs Destroyed . | . . . . . . . Combat | -11 -10 -10 -10 -9 -8 -8 -------- Run | Scr Mat Min Exi Min Mat Sto Damage Taken 3276 | . 83 144 420 34 371 2224 Core 616 | . . . 66 . 117 433 Absorbed by Shields . | . . . . . . . Core Remaining (%) 86 | 100 . . . 73 . . Volleys Fired 166 | . 5 10 15 7 35 94 Largest 2 | . 2 2 2 1 2 2 Hottest 88 | . 80 80 60 40 79 88 Shots Fired 285 | . 10 19 26 7 55 168 Gun 189 | . 10 19 26 7 55 72 Cannon 85 | . . . . . . 85 Launcher 11 | . . . . . . 11 Special . | . . . . . . . Kinetic 161 | . . . 15 . 25 121 Thermal 91 | . . 7 11 7 30 36 Explosive 11 | . . . . . . 11 Electromagnetic 22 | . 10 12 . . . . Robot Hit Streak 41 | . 4 8 7 1 11 41 Robot Miss Streak 3 | . 2 2 1 2 2 3 Penetration Max . | . . . . . . . Secondary Targets 4 | . 1 . . . 1 2 Max Gunslinging Chain 1 | . 1 . . . 1 1 Shots Hit Robots 215 | . 6 14 19 3 44 129 Core Hits 127 | . 4 6 5 2 17 93 Critical Kills . | . . . . . . . Critical Parts Destroyed . | . . . . . . . Critical Strikes 9 | . . . . . 1 8 Burn 7 | . . . . . 1 6 Blast 2 | . . . . . . 2 Melee Attacks . | . . . . . . . Impact . | . . . . . . . Slashing . | . . . . . . . Piercing . | . . . . . . . Sneak Attacks . | . . . . . . . Combat Hostiles . | . . . . . . . Follow-up Attacks . | . . . . . . . Damage Inflicted 5984 | . 161 174 194 46 585 4824 Guns 1983 | . 64 174 194 46 577 928 Cannons 1678 | . . . . . . 1678 Explosions 2315 | . 97 . . . . 2218 Melee . | . . . . . . . Ramming 8 | . . . . . 8 . Kinetic 2502 | . . . 95 . 261 2146 Thermal 1073 | . 97 55 99 46 316 460 Explosive 2218 | . . . . . . 2218 Electromagnetic 183 | . 64 119 . . . . Impact . | . . . . . . . Slashing . | . . . . . . . Piercing . | . . . . . . . Highest Corruption . | . . . . . . . Average Corruption . | . . . . . . . Corruption Purged . | . . . . . . . Overload Shots . | . . . . . . . Overflow Damage 95 | . 12 . . . . 83 Projectiles 29 | . . . . . . 29 Explosions 66 | . 12 . . . . 54 Melee . | . . . . . . . Knockbacks 11 | . . . . . . 11 Impact . | . . . . . . . Kinetic 9 | . . . . . . 9 Secondary 2 | . . . . . . 2 Self-Inflicted Damage 91 | . . . . . 3 88 Shots 3 | . . . . . . 3 Rammed 4 | . . . . . 4 . Targets Rammed 4 | . . . . . 4 . Kicked . | . . . . . . . Crushed . | . . . . . . . Highest Temperature 279 | . 90 196 60 6 12 279 Average Temperature 66 | . 47 86 34 3 9 78 Received Heat Transfer 1088 | . . 105 20 18 126 819 Effects 2 | . . . . . . 2 Interference 2 | . . . . . . 2 Siege Activations . | . . . . . . . Robots Corrupted . | . . . . . . . Combat Hostiles . | . . . . . . . Parts Fried . | . . . . . . . Impact Corruptions . | . . . . . . . Robots Melted . | . . . . . . . Combat Hostiles . | . . . . . . . Parts Melted 5 | . . . . 1 2 2 Heat Transferred 3020 | . 100 125 225 100 842 1628 Parts Sabotaged . | . . . . . . . Parts Stolen . | . . . . . . . Parts Stripped . | . . . . . . . Power Chain Reactions 1 | . 1 . . . . . Missiles Intercepted . | . . . . . . . Alert | -11 -10 -10 -10 -9 -8 -8 ------- Run | Scr Mat Min Exi Min Mat Sto Peak Influence 792 | . 107 126 . 40 235 792 Initial 41 | . . 41 . . 15 35 Average 200 | . 82 92 . 15 120 347 Maximum Alert Level 3 | . . . . . 1 3 Low Security (%) 68 | 100 100 100 . 100 96 30 Level 1 16 | . . . . . 3 34 Level 2 11 | . . . . . . 25 Level 3 3 | . . . . . . 8 Level 4 . | . . . . . . . Level 5 . | . . . . . . . High Security . | . . . . . . . Max Security . | . . . . . . . Squads Dispatched 12 | . . 1 . . 1 10 Investigation 1 | . . . . . . 1 Extermination . | . . . . . . . Reinforcement 6 | . . . . . 1 5 Assault 3 | . . 1 . . . 2 Garrison 2 | . . . . . . 2 Intercept . | . . . . . . . Construction Impeded . | . . . . . . . Haulers Reinforced . | . . . . . . . Active Scanning Responses . | . . . . . . . Cargo Convoy Interrupts . | . . . . . . . Stealth | -11 -10 -10 -10 -9 -8 -8 --------- Run | Scr Mat Min Exi Min Mat Sto Distress Signals 8 | . 1 . . 1 1 5 Communications Jammed . | . . . . . . . Distress Signals . | . . . . . . . Times Spotted 84 | . 4 5 3 2 15 55 Peak Tracking Total 9 | . 4 3 9 1 6 9 Tactical Retreats 2 | . . 1 . 1 . . Traps | -11 -10 -10 -10 -9 -8 -8 ------- Run | Scr Mat Min Exi Min Mat Sto Traps Triggered 1 | . . . . . . 1 Indirectly . | . . . . . . . Trap Hack Attempts . | . . . . . . . Triggered . | . . . . . . . Disarmed . | . . . . . . . Reprogrammed . | . . . . . . . Reused . | . . . . . . . Traps Extracted . | . . . . . . . Installed . | . . . . . . . Triggered 1 | . . . . 1 . . Machines | -11 -10 -10 -10 -9 -8 -8 ---------- Run | Scr Mat Min Exi Min Mat Sto Machines Disabled 3 | . 1 . . . . 2 Max in Single Turn 1 | . 1 . . . . 1 Machines Sabotaged . | . . . . . . . Garrisons Compromised . | . . . . . . . Overloaded Fab Kills . | . . . . . . . Fab Network Shutdowns . | . . . . . . . Hacking | -11 -10 -10 -10 -9 -8 -8 --------- Run | Scr Mat Min Exi Min Mat Sto Machines Accessed 9 | . . . 2 . 1 6 Terminals 6 | . . . . . 1 5 Fabricators . | . . . . . . . Repair Stations . | . . . . . . . Recycling Units 1 | . . . . . . 1 Scanalyzers . | . . . . . . . Garrison Access . | . . . . . . . Total Hacks 12 | . . . 2 . 1 9 Successful 6 | . . . 2 . . 4 Failed 6 | . . . . . 1 5 Catastrophic 1 | . . . . . . 1 Database Lockouts . | . . . . . . . Manual 10 | . . . 1 . 1 8 Terminals 9 | . . . . . 1 8 Fabricators . | . . . . . . . Repair Stations . | . . . . . . . Recycling Units 1 | . . . . . . 1 Scanalyzers . | . . . . . . . Garrison Access . | . . . . . . . Terminal Hacks 4 | . . . 2 . . 2 Record 1 | . . . 1 . . . Open Door 1 | . . . . . . 1 Unreport Threat 1 | . . . . . . 1 EX-Prototype ID Bank 1 | . . . 1 . . . Fabricator Hacks . | . . . . . . . Repair Station Hacks . | . . . . . . . Recycling Unit Hacks . | . . . . . . . Scanalyzer . | . . . . . . . Garrison Access Hacks . | . . . . . . . Unauthorized Hacks 2 | . . . . . . 2 Terminals 1 | . . . . . . 1 Botnet 1 | . . . . . . 1 Fabricators . | . . . . . . . Repair Stations . | . . . . . . . Recycling Units 1 | . . . . . . 1 Tunnel 1 | . . . . . . 1 Scanalyzers . | . . . . . . . Garrison Access . | . . . . . . . Data Cores Recovered . | . . . . . . . Used . | . . . . . . . Hacking Detections 4 | . . . . . 1 3 Full Trace Events . | . . . . . . . Feedback Events . | . . . . . . . Feedback Blocked . | . . . . . . . Robot Schematics Acquired . | . . . . . . . Robots Built . | . . . . . . . Matter . | . . . . . . . Time . | . . . . . . . Total Robot Build Rating . | . . . . . . . Part Schematics Acquired . | . . . . . . . Parts Built . | . . . . . . . Matter . | . . . . . . . Time . | . . . . . . . Total Part Build Rating . | . . . . . . . Parts Repaired . | . . . . . . . Time . | . . . . . . . Parts Recycled . | . . . . . . . Recycled Matter . | . . . . . . . Retrieved Matter . | . . . . . . . Retrieved Components . | . . . . . . . Parts Scanalyzed . | . . . . . . . Part Schematics Acquired . | . . . . . . . Parts Damaged . | . . . . . . . Bothacking | -11 -10 -10 -10 -9 -8 -8 ------------ Run | Scr Mat Min Exi Min Mat Sto Used RIF Installer . | . . . . . . . Robots Hacked . | . . . . . . . Non-combat . | . . . . . . . Combat . | . . . . . . . Robot Hacks Applied . | . . . . . . . Relay Couplers Released . | . . . . . . . Robots Rewired . | . . . . . . . Allies Hacked . | . . . . . . . Hacks Repelled . | . . . . . . . Allies | -11 -10 -10 -10 -9 -8 -8 -------- Run | Scr Mat Min Exi Min Mat Sto Total Allies 3 | . . 1 . . . 2 Largest Group 2 | . . 1 1 . . 2 Highest-Rated Group 62 | . . 31 31 . . 62 Highest-Rated Ally 31 | . . 31 31 . . 31 Total Orders . | . . . . . . . Ally Attacks 30 | . . . . . . 30 Total Damage 489 | . . . . . . 489 Kills 4 | . . . . . . 4 Allies Corrupted . | . . . . . . . Allies Melted . | . . . . . . . Intel | -11 -10 -10 -10 -9 -8 -8 ------- Run | Scr Mat Min Exi Min Mat Sto Robot Analysis Total . | . . . . . . . Derelict Logs Recovered 1 | . . . . 1 . . Drone Launches . | . . . . . . . Drone Recoveries . | . . . . . . . Exploration | -11 -10 -10 -10 -9 -8 -8 ------------- Run | Scr Mat Min Exi Min Mat Sto Turns Passed 2760 | 82 137 222 755 174 509 881 Spaces Moved 1436 | 45 76 116 417 263 215 304 Core 150 | 2 . . 8 121 19 . Treads 1144 | 43 76 116 409 . 196 304 Legs . | . . . . . . . Wheels . | . . . . . . . Hover 142 | . . . . 142 . . Flight . | . . . . . . . Fastest Speed 50 | 50 160 160 50 50 50 160 Average Speed 140 | 155 160 160 157 57 159 161 Slowest Speed 260 | 160 160 160 160 100 260 260 Overloaded Moves . | . . . . . . . Propulsion Burnouts . | . . . . . . . Robots Hopped . | . . . . . . . Cave-ins Triggered . | . . . . . . . Exploration Rate (%) 37 | 4 21 32 69 56 23 55 Regions Visited 6 Branch Regions 4 Pre-discovered Areas 2 | . . . 1 . . 1 Known Exits Taken . | . . . . . . . Unknown Exits Taken 6 | 1 1 1 1 1 1 . Scrap Searched 2 | . . . . 2 . . Spaces Dug . | . . . . . . . Terrain Destroyed 92 | . 2 . . . . 90 Melee . | . . . . . . . Projectile 6 | . . . . . . 6 AOE 86 | . 2 . . . . 84 Terrain Rammed . | . . . . . . . Walls Destroyed . | . . . . . . . Machines Disabled . | . . . . . . . Actions | -11 -10 -10 -10 -9 -8 -8 --------- Run | Scr Mat Min Exi Min Mat Sto Total 1884 | 55 81 133 491 277 324 523 Wait 182 | . . 6 54 4 45 73 Move 1430 | 44 75 115 416 262 214 304 Hop . | . . . . . . . Pick Up 17 | 1 . . 1 . 6 9 Fast Attach 30 | 7 1 1 . 2 10 9 Attach 10 | 1 . 1 . 1 1 6 Detach 6 | 2 . . 2 1 1 . Swap 19 | . . . 1 . 4 14 Drop 20 | . . . 2 . 4 14 Fire 166 | . 5 10 15 7 35 94 Melee . | . . . . . . . Ram 4 | . . . . . 4 . Kick . | . . . . . . . Crush . | . . . . . . . Escape Stasis . | . . . . . . . Rewire . | . . . . . . . Trap . | . . . . . . . Miscellaneous . | . . . . . . . Route ------- -11/Scrapyard -10/Materials -10/Mines -10/Exiles -9/Mines -8/Materials (discovered 2 exits: Fac / *Sto) -8/Storage History --------- Turn | Location | Event 18 | -11/Scrapyard | Discovered new exit (range 14) 83 | -11/Scrapyard | Entered Materials 186 | -10/Materials | Discovered new exit (range 15) 220 | -10/Materials | Entered Mines 311 | -10/Mines | Build established: Mutant 385 | -10/Mines | Met a Derelict testing a Signal Generator 436 | -10/Mines | Deemed a non-threat by the Exiles lab entrance 436 | -10/Mines | Discovered new exit (range 5) 442 | -10/Mines | Entered Exiles 442 | -10/Exiles | Accompanied by 1 ally 481 | -10/Exiles | Met 8R-AWN 506 | -10/Exiles | Met EX-HEX 593 | -10/Exiles | Met EX-DEC 622 | -10/Exiles | Learned location of Zion (-7) 753 | -10/Exiles | Met EX-BIN 780 | -10/Exiles | Aligned with FarCom system 782 | -10/Exiles | Given EX-Vault access code 822 | -10/Exiles | Opened EX-Vault 832 | -10/Exiles | Found Lightpack 2.0 865 | -10/Exiles | Warned to stay clear of 0b10 Research branches 1151 | -10/Exiles | Attacked by the Exiles 1190 | -10/Exiles | Discovered new exit (range 10) 1197 | -10/Exiles | Left Exiles lab with Lightpack 2.0 1197 | -10/Exiles | Entered Mines 1217 | -9/Mines | Learned 2 Materials zone layouts 1222 | -9/Mines | Lost 4 parts (1p2n1w) 1236 | -9/Mines | Assembled infested the area 1368 | -9/Mines | Discovered new exit (range 5) 1371 | -9/Mines | Entered Materials 1371 | -8/Materials | Evolved 4 slots: Propulsion x1, Utility x3 1372 | -8/Materials | Identified exit to Factory 1732 | -8/Materials | Build established: Scavenger-Mutant 1869 | -8/Materials | Discovered new exit (range 7) 1880 | -8/Materials | Entered Storage 2439 | -8/Storage | Met a pair of Derelict thieves 2525 | -8/Storage | Destroyed 8 combat bots 2545 | -8/Storage | Core integrity fell below 50% 2579 | -8/Storage | Lost 3 parts (1n2u) 2659 | -8/Storage | Garrison activated, responded to threat 2682 | -8/Storage | Destroyed 8 combat bots 2720 | -8/Storage | Core integrity fell below 20% 2761 | -8/Storage | Destroyed by G-47 Trooper with Particle Gun Last Messages --------------- 02723_ K-01 Serf collects debris. 02725_ Critical hit (Burn: +37). 02725_ K-01 Serf collects debris. 02728_ Y-45 Defender destroyed. 02729_ Overheating: System interference. 02729_ Assault Cannon temporarily disabled. 02729_ Targeting Computer temporarily disabled. 02729_ Acquired 20 matter. 02730_ K-01 Serf collects debris. 02733_ K-01 Serf destroyed. 02733_ K-01 Serf collects debris. 02738_ Acquired 17 matter. 02739_ Packing Station disabled. 02741_ K-01 Serf collects debris. 02743_ Recycling unit begins recycling process. 02744_ K-01 Serf collects debris. 02753_ Targeting Computer destroyed. 02756_ Imp. Light Armor Plating destroyed. 02757_ Imp. Ion Engine destroyed. 02760_ R-06 Scavenger collects Med. Matter Pod. Map ----- +----------------------------------------------------+ | | | | | | | | | | | | | | | ?????????????????????????????????????????????????? | | ?????????????????????????????????????????????????? | | ?????????????????????????????????????????????????? | | ?????????????????????????????????????????????????? | | ?????????????????????????????????????????????????? | | ?????????????????????????????????????????????????? | | ?????????????????????????????????????????????????? | | ?????????????????????????????????????????????????? | | ???????????????????? ???????????????????????????? | | ???????????????????? ???????????????????????????? | | ????????????????????#+#####??????????????????????? | | ?????????????????# % #??????????????????????? | | ?????????????????# """"" #??????????????????????? | | ????????????????## """" !#??????????????????????? | | ????????????????"" """""% #??????????????????????? | | ????????????????"Y ########???????????????? | | ????????????????"" """" r g#% #####???????????? | | ?????????????????# """"" g* k ????? | | ?????????????????# """"" @;##%% ????? | | ????????##???????# a ### % """ """" ?????? | | ????????# ####???### [# ## """""" ""????????? | | ?????##### ###??## # #*# ## """"" "????????? | | ?????# %#########%[ ## """""????"???????? | | ???### [ = = * k ?????????? | | ??## % = * ?????????? | | ??# ## = ! *** ?????????? | | ??## # [%# ""# #= ############??????????? | | ??# # ! "##! ####### ##?????????????????????? | | ??# ### # # #?????# #??????????????????????? | | ??## # # ###?????# #??????????????????????? | | ???# # #???????# #??????????????????????? | | ???## # = # ##???????# +??????????????????????? | | ????### =# ##???????+ #??????????????????????? | | ?????#T=* ###????????# #??????????????????????? | | ?????# + = ##?????????# #??????????????????????? | | # # #??????????# #??????????????????????? | | #!!!!# # ##?????????? #??????????????????????? | | ######## T#??????????####??????????????????????? | | ???????# #############?????????????????????????? | | ???????# # """" """" #?????????????????????????? | | ???????# # """" """" #?????????????????????????? | | ???????# # """" """" #?????????????????????????? | | ???????# %+ """" """" ##????????????????????????? | +----------------------------------------------------+ Best States ------------- Heat Dissipation 45 Energy Generation 12 Energy Capacity 265 Matter Stores 300 Matter Capacity 300 Sight Range 16 Terrain Scan Density 10 Armor Coverage 450 Evasion (%) 53 Targeting Accuracy 5 Recoil Reduction 3 Item Schematics ----------------- None Robot Schematics ------------------ None Fabricated ------------ Nothing Alien Tech Used ----------------- None Achievements -------------- None Challenges ------------ None Game ------ Seed StealthAssembledScreen Manual? 0 Play Time 00:17:49 Cumulative 235.3 hours Start 2021.10.18 @ 21:24:43 End 2021.10.18 @ 21:40:22 Sessions 1 Manual Loads 0 Difficulty Rogue Special Mode None Game No. 309 Rogue 222 Adventurer 87 Explorer 0 Win Type - Total 5 Types 3/0/1/1/0/0/0/0/0 Lore% 71 Gallery% 79 Achievement% 67 Wizard Run 0 Options --------- ASCII 0 Keyboard 1 Movement Numpad Keybinds 0 Fullscreen 1 Font 18/Smallcaps Map View 76x50 Tactical HUD 1 Map Filters NONE Filters NONE Steam 1 RUN: ecf6760d-b7cd-459a-9a2d-9e0b4f894f0e